bitfinex-derivatives/quotes_ETHF0:USTF0_20240905
["timestamp","ask_amount","ask_price","bid_price","bid_amount"]
[1725531865317,0.42266523,2389.6,2389.4,0.80912]
[1725531865718,3.63046523,2389.6,2389.4,0.80912]
[1725531866224,3.63046523,2389.6,2389.5,0.41851]
[1725531866225,3.21195523,2389.6,2389.5,0.41851]
[1725531867722,0.00415523,2389.6,2389.5,0.41851]
[1725531868023,0.00415523,2389.6,2389.5,0.79871]
[1725531868622,0.00415523,2389.6,2389.5,4.98351]
[1725531869418,0.00415523,2389.6,2389.5,7.88351]
[1725531869926,3.62618,2390.3,2390.0,0.41841]
[1725531870126,3.62618,2390.3,2389.9,0.41843]
[1725531870322,3.2078,2390.3,2390.0,0.41842]
[1725531870625,3.62619,2390.3,2389.9,0.41843]
[1725531870826,3.62619,2390.3,2390.0,0.41842]
[1725531871124,3.2078,2390.3,2390.1,0.4184]
[1725531871726,3.2078,2390.3,2390.2,0.41839]
[1725531871922,3.2078,2390.3,2389.8,2.9]
[1725531872126,3.62617,2390.3,2390.0,0.41841]
[1725531872522,3.2078,2390.3,2390.1,0.4184]
[1725531872725,0.22138685,2390.2,2390.1,0.4184]
[1725531873325,0.22138685,2390.2,2389.8,2.9]
[1725531873523,0.22138685,2390.1,2390.0,0.41842]
[1725531875430,0.22138685,2390.1,2389.9,0.41843]
[1725531875629,0.41839,2390.2,2389.9,0.41843]
[1725531875823,0.22140979,2390.1,2389.9,0.41843]
[1725531876019,0.41839,2390.2,2389.9,0.41843]
[1725531876224,0.63981435,2390.1,2389.9,0.41843]
[1725531876425,0.63983707,2390.0,2389.8,0.41845]
[1725531876732,0.41842,2390.1,2389.8,0.41845]
[1725531877025,3.84763018,2390.0,2389.7,0.41847]
[1725531877235,0.22139018,2389.9,2389.7,0.41847]
[1725531877838,0.22139018,2389.9,2389.8,0.41846]
[1725531878425,0.4184,2390.2,2390.0,0.41842]
[1725531878625,4.64431,2390.4,2390.0,0.41841]
[1725531878626,0.22135802,2390.1,2390.0,0.41841]
[1725531879127,4.01677,2390.4,2390.1,0.41839]
[1725531879333,0.4219461,2390.3,2390.1,0.41839]
[1725531879538,0.4219461,2390.3,2390.0,0.3594]
[1725531879725,0.64322757,2390.3,2390.1,0.41841]
[1725531879925,0.64322757,2390.3,2390.2,0.41839]
[1725531880628,3.2078,2390.7,2390.2,8.12997]
[1725531880931,3.2078,2390.7,2390.6,3.31832]
[1725531881134,4.111,2391.1,2390.6,2.9]
[1725531881135,4.4698,2391.1,2390.6,2.9]
[1725531881429,4.88803,2391.1,2390.9,0.41826]
[1725531881631,4.4698,2391.1,2390.9,0.41826]
[1725531882023,4.111,2391.1,2390.9,0.41826]
[1725531882237,3.2078,2391.2,2391.0,0.41823]
[1725531882432,3.2078,2391.2,2390.7,1.80735]
[1725531882637,3.2078,2391.2,2390.7,0.7616]
[1725531882930,3.62603,2391.2,2390.9,0.41826]
[1725531883329,3.2078,2391.2,2390.7,0.3675]
[1725531883520,3.62603,2391.2,2390.7,0.3675]
[1725531883727,3.2078,2391.2,2390.7,0.3675]
[1725531883925,0.4182,2391.3,2390.8,2.9]
[1725531884128,0.777,2391.4,2391.2,0.41822]
[1725531884328,0.777,2391.4,2390.8,2.9]
[1725531884329,1.40428,2391.4,2390.8,2.9]
[1725531884532,1.40428,2391.4,2391.0,0.41824]
[1725531884736,0.41821,2391.3,2391.1,0.41823]
[1725531885029,1.40428,2391.4,2391.0,0.41824]
[1725531885030,0.41822,2391.2,2391.0,0.41824]
[1725531885528,0.3588,2391.4,2390.8,2.9]
[1725531885726,1.40428,2391.4,2390.8,2.9]
[1725531885930,0.41823,2391.2,2391.0,0.41825]
[1725531886320,1.40428,2391.4,2391.0,0.41824]
[1725531886528,0.41823,2391.2,2391.0,0.41824]
[1725531886733,0.41823,2391.2,2390.8,2.9]
[1725531887029,1.40428,2391.4,2391.1,0.41822]
[1725531887030,0.4182,2391.3,2391.1,0.41822]
[1725531887436,0.41822,2391.2,2391.0,0.41824]
[1725531887631,0.41821,2391.3,2391.1,0.41823]
[1725531887832,0.41822,2391.2,2391.0,0.41824]
[1725531889536,0.41823,2391.1,2391.0,0.41824]
[1725531889839,0.41823,2391.1,2391.0,0.41825]
[1725531890637,3.62603,2391.2,2391.0,0.41825]
[1725531891233,0.41825,2391.1,2390.9,0.41826]
[1725531891431,4.25337,2391.2,2390.7,0.3675]
[1725531891626,0.80506,2391.0,2390.7,0.3675]
[1725531891828,0.41825,2391.1,2390.7,0.3675]
[1725531892141,0.41825,2391.0,2390.9,0.41826]
[1725531892630,4.25337,2391.2,2390.7,0.3675]
[1725531892830,0.41826,2391.0,2390.8,0.41827]
[1725531893932,3.62602,2391.2,2391.0,0.41824]
[1725531894136,3.62602,2391.2,2391.1,0.41823]
[1725531894538,3.2078,2391.2,2391.1,0.41823]
[1725531897530,8.0625,2391.5,2391.3,0.41819]
[1725531897732,8.0625,2391.5,2391.4,0.41818]
[1725531897933,8.0625,2391.5,2391.2,0.3741]
[1725531897934,8.0625,2391.5,2391.3,0.41818]
[1725531898137,8.0625,2391.5,2391.3,0.79978]
[1725531898642,8.48066,2391.5,2391.3,0.79978]
[1725531899041,8.0625,2391.5,2391.4,0.41818]
[1725531899236,3.5831,2391.5,2391.4,0.41818]
[1725531901035,3.5831,2391.5,2391.3,0.79979]
[1725531901345,1.0455,2391.3,2390.7,0.4183]
[1725531901538,0.3737,2391.2,2391.0,0.41825]
[1725531901738,4.98549806,2391.2,2391.1,0.41823]
[1725531901939,0.3737,2391.2,2391.1,0.41823]
[1725531902244,0.41822,2391.2,2390.9,0.79346]
[1725531902440,0.41825,2391.1,2390.8,3.31828]
[1725531902645,0.81225,2391.1,2390.8,3.31828]
[1725531902842,0.41825,2391.0,2390.8,3.31828]
[1725531903041,0.394,2391.1,2390.8,3.31828]
[1725531903347,0.41825,2391.0,2390.8,3.31828]
[1725531903543,3.6018,2391.1,2390.6,0.3948]
[1725531903738,0.41833,2390.6,2390.4,0.4246297]
[1725531903941,0.41834,2390.5,2390.4,0.0062797]
[1725531904136,4.02014,2390.5,2390.4,0.0062797]
[1725531905532,3.2078,2390.5,2390.4,0.4246397]
[1725531905943,3.2078,2390.5,2390.4,0.0062797]
[1725531906649,3.62614,2390.5,2390.4,0.0062797]
[1725531906849,3.2078,2390.5,2390.4,0.4246397]
[1725531907247,3.2078,2390.5,2390.4,0.0062797]
[1725531907443,3.2078,2390.5,2390.4,0.4246397]
[1725531908250,42.21756737,2393.6,2390.8,0.41827]
[1725531908251,4.111,2391.0,2390.8,0.41827]
[1725531908553,4.111,2391.0,2390.9,0.41827]
[1725531908744,0.77524,2391.1,2390.8,0.41828]
[1725531909146,0.77524,2391.1,2390.9,0.41826]
[1725531909451,0.77524,2391.1,2390.9,0.41827]
[1725531910750,3.2078,2391.2,2390.9,13.0824]
[1725531910950,3.2078,2392.6,2391.1,6.1078]
[1725531911251,3.2078,2391.9,2391.3,2.9]
[1725531911455,3.2078,2391.9,2391.6,0.0062797]
[1725531911655,3.2078,2391.9,2391.6,0.4244197]
[1725531911855,3.2078,2391.9,2391.6,0.0062797]
[1725531912157,0.386,2392.0,2391.9,0.41809]
[1725531912547,3.2078,2392.2,2392.0,0.41807]
[1725531912859,0.386,2392.4,2392.1,0.41805]
[1725531913056,0.386,2392.4,2392.2,0.41804]
[1725531913259,0.386,2392.4,2392.0,2.9]
[1725531913447,0.386,2392.4,2392.2,0.41803]
[1725531913644,3.2078,2392.5,2391.8,2.9]
[1725531913955,6.52574,2392.8,2392.4,0.418]
[1725531914247,6.52574,2392.8,2392.0,2.9]
[1725531914248,0.22123173,2392.7,2392.5,0.41798]
[1725531914457,6.52574,2392.8,2392.5,0.41798]
[1725531914648,6.52574,2392.8,2392.1,0.3845]
[1725531914851,0.22124925,2392.7,2392.5,0.41798]
[1725531915154,6.52574,2392.8,2392.5,0.41798]
[1725531915354,0.41795,2392.7,2392.4,0.418]
[1725531916251,0.41795,2392.7,2392.5,0.41799]
[1725531916746,3.62575,2392.8,2392.5,0.41798]
[1725531916949,0.54643862,2392.9,2392.8,0.41794]
[1725531917146,3.2078,2393.1,2392.4,2.9]
[1725531917449,3.2078,2393.1,2393.0,0.4179]
[1725531917952,4.111,2393.5,2393.4,0.41783]
[1725531918344,3.2078,2393.7,2393.4,4.1784]
[1725531918544,3.2078,2393.7,2392.9,3.2846]
[1725531918747,0.41783,2393.5,2393.2,0.41786]
[1725531918954,3.2078,2393.7,2393.1,2.9]
[1725531918955,0.41781,2393.6,2393.1,2.9]
[1725531919158,0.41781,2393.6,2393.3,0.41784]
[1725531919556,0.41781,2393.6,2392.9,0.3846]
[1725531919557,3.2078,2393.9,2393.5,2.9]
[1725531919748,0.3709,2393.9,2393.5,2.9]
[1725531919949,0.41777,2393.8,2393.5,0.41781]
[1725531920845,1.41527,2393.9,2393.4,0.3931]
[1725531921047,0.41781,2393.6,2393.3,0.41784]
[1725531921455,0.41782,2393.5,2393.2,0.41786]
[1725531921855,0.41787,2393.2,2392.9,0.3648]
[1725531922161,0.41787,2393.2,2392.9,0.78271]
[1725531922758,0.41787,2393.2,2392.9,0.41791]
[1725531924065,3.2078,2393.7,2392.9,7.3862]
[1725531924264,3.2078,2393.7,2393.0,0.359]
[1725531924461,0.41783,2393.4,2393.1,0.41787]
[1725531924650,0.41785,2393.3,2393.0,1.13419]
[1725531924853,0.41787,2393.2,2393.0,0.3573]
[1725531925157,0.4179,2393.0,2392.7,0.41795]
[1725531925556,0.4179,2393.0,2392.6,3.2078]
[1725531925557,3.62569,2393.1,2392.8,0.4242097]
[1725531926251,0.3931,2393.3,2392.9,4.1792]
[1725531926454,0.41788,2393.2,2392.9,0.41791]
[1725531927361,0.81096,2393.3,2393.0,0.4179]
[1725531927562,0.41787,2393.2,2392.9,0.41792]
[1725531927751,0.81096,2393.3,2393.0,0.41789]
[1725531928656,0.3931,2393.3,2393.0,0.41789]
[1725531928959,0.41787,2393.2,2393.0,0.4179]
[1725531929152,0.41787,2393.2,2392.9,0.41791]
[1725531929458,0.41787,2393.2,2392.9,0.41792]
[1725531929855,0.3931,2393.3,2392.9,0.41792]
[1725531930163,0.41787,2393.2,2392.9,0.41792]
[1725531930853,0.41788,2393.1,2392.9,0.41792]
[1725531931158,0.41792,2392.9,2392.8,0.0062797]
[1725531931555,4.59712,2392.9,2392.8,0.0062797]
[1725531931757,4.59712,2392.9,2391.9,8.45002]
[1725531931758,0.41801,2392.4,2391.9,4.197]
[1725531932061,0.41801,2392.4,2392.2,0.41803]
[1725531932264,0.41799,2392.6,2392.3,0.41802]
[1725531932660,0.37033379,2392.7,2392.2,0.00626593]
[1725531932865,0.78829379,2392.7,2392.5,0.41798]
[1725531933271,0.37033379,2392.7,2392.6,0.41797]
[1725531933564,0.78829379,2392.7,2392.5,0.41798]
[1725531933956,0.78829379,2392.7,2392.3,0.3844]
[1725531933957,0.41797,2392.6,2392.3,0.80241]
[1725531934254,0.41801,2392.4,2392.3,0.3844]
[1725531935565,0.41797,2392.6,2392.4,0.418]
[1725531936260,1.16419379,2392.7,2392.5,0.41798]
[1725531936763,0.41798,2392.6,2392.4,0.418]
[1725531937167,1.16419379,2392.7,2392.5,0.41799]
[1725531937360,0.37033379,2392.7,2392.6,0.41797]
[1725531937562,0.42418379,2392.7,2392.6,0.41797]
[1725531937766,0.42418379,2392.7,2392.5,0.41798]
[1725531938067,0.00623379,2392.7,2392.6,0.41797]
[1725531938663,0.418,2392.5,2392.3,0.80242]
[1725531938856,0.41799,2392.5,2392.3,0.80242]
[1725531939055,0.41798,2392.6,2392.4,0.418]
[1725531940268,0.00623379,2392.7,2392.4,0.418]
[1725531940269,0.41799,2392.5,2392.4,0.418]
[1725531940466,0.00623379,2392.7,2392.4,0.418]
[1725531940467,0.41798,2392.6,2392.4,0.418]
[1725531941261,0.418,2392.5,2392.3,0.3844]
[1725531941470,0.418,2392.5,2392.3,0.80241]
[1725531942264,0.00623379,2392.7,2392.6,0.41797]
[1725531943663,4.18,2392.6,2391.0,3.2078]
[1725531943962,3.30814,2391.7,2391.1,0.41822]
[1725531944168,3.30814,2391.7,2391.0,3.2078]
[1725531944169,3.2078,2391.8,2391.0,46.8978]
[1725531944375,3.2078,2391.8,2391.2,2.89]
[1725531944661,0.3762,2391.9,2391.2,2.89]
[1725531944863,0.3762,2391.9,2391.3,0.3933]
[1725531945057,3.2078,2391.8,2391.4,0.00626593]
[1725531945476,6.51592,2391.8,2391.4,0.00626593]
[1725531945664,0.41813,2391.7,2391.4,0.00626593]
[1725531945870,6.0978,2391.8,2391.4,0.00626593]
[1725531946464,6.51592,2391.8,2391.4,0.00626593]
[1725531946670,6.0978,2391.8,2391.4,0.00626593]
[1725531949266,3.2078,2391.8,2391.4,0.00626593]
[1725531951267,3.62591,2391.8,2391.4,0.00626593]
[1725531953576,0.41816,2391.6,2391.4,0.00626593]
[1725531953779,3.62591,2391.8,2391.4,0.00626593]
[1725531954070,0.41816,2391.6,2391.4,0.00626593]
[1725531954465,0.41815,2391.6,2391.4,0.00626593]
[1725531954863,0.41816,2391.5,2391.4,0.00626593]
[1725531955079,0.41816,2391.6,2391.4,0.00626593]
[1725531955975,3.62596,2391.5,2391.4,0.00626593]
[1725531957170,0.41816,2391.5,2391.4,0.00626593]
[1725531957372,3.62596,2391.5,2391.4,0.00626593]
[1725531961977,0.41816,2391.5,2391.4,0.00626593]
[1725531962975,3.62596,2391.5,2391.4,0.00626593]
[1725531963970,8.85298,2391.5,2391.4,0.00626593]
[1725531964175,9.22778,2391.5,2391.4,0.00626593]
[1725531964376,9.22778,2391.5,2389.6,10.47389093]
[1725531964581,9.22778,2391.5,2388.5,26.36958284]
[1725531964582,3.2078,2390.3,2389.4,1.97586873]
[1725531964888,6.0978,2389.5,2388.8,0.41862]
[1725531965173,3.2078,2389.5,2388.9,0.3571]
[1725531965481,3.2078,2389.5,2389.4,0.92260873]
[1725531967085,6.0978,2389.5,2389.4,0.92260873]
[1725531967579,3.2078,2389.5,2389.4,0.92260873]
[1725531972082,3.2078,2389.5,2389.4,7.34113873]
[1725531972271,6.0978,2389.5,2389.4,0.92260873]
[1725531972475,6.51631,2389.5,2389.4,0.92260873]
[1725531974181,0.41858,2389.1,2389.0,0.00626593]
[1725531974374,6.51638,2389.1,2389.0,0.00626593]
[1725531974986,7.56285,2389.1,2389.0,0.00626593]
[1725531975479,11.74845,2389.1,2389.0,5.93e-06]
[1725531975874,11.95769759,2389.1,2389.0,5.93e-06]
[1725531976683,6.0978,2389.1,2389.0,5.93e-06]
[1725531977187,6.51638,2389.1,2389.0,5.93e-06]
[1725531978876,6.0978,2389.1,2389.0,5.93e-06]
[1725531979787,3.2078,2389.1,2389.0,4.60420593]
[1725531980084,3.2078,2389.1,2389.0,10.60420593]
[1725531980680,3.2078,2389.1,2389.0,4.60420593]
[1725531984386,3.2078,2389.1,2389.0,4.18560593]
[1725531984590,3.2078,2389.1,2389.0,4.60420593]
[1725531985689,2.89,2389.2,2389.1,0.41858]
[1725531987287,6.0978,2389.4,2389.2,0.41855]
[1725531987492,6.51633,2389.4,2389.2,0.41855]
[1725531987894,6.0978,2389.4,2389.3,0.41855]
[1725531988090,3.2078,2389.4,2389.3,0.41855]
[1725531989193,7.80045593,2389.7,2389.0,5.93e-06]
[1725531989194,0.4185,2389.6,2389.4,0.41853]
[1725531989402,3.2078,2389.5,2389.4,0.41853]
[1725531989594,0.4185,2389.6,2389.4,0.41853]
[1725531989897,7.38196593,2389.7,2389.4,0.41853]
[1725531989898,3.2078,2389.5,2389.4,0.41853]
[1725531992694,3.2078,2389.5,2389.4,4.60333]
[1725531992900,3.2078,2389.5,2389.4,5.64967]
[1725531993301,0.00626593,2389.7,2389.6,0.4185]
[1725531994599,0.00626593,2389.7,2389.6,4.6033]
[1725531995091,0.00626593,2389.7,2389.6,0.4185]
[1725531995302,0.00626593,2389.7,2389.6,4.6033]
[1725531995708,0.00626593,2389.7,2389.6,0.4185]
[1725531998906,0.00626593,2389.7,2389.5,0.7566]
[1725531999110,2.89,2389.6,2389.0,1.04647593]
[1725531999412,3.2078,2389.3,2389.1,0.7168]
[1725531999605,3.62636,2389.3,2389.1,0.7168]
[1725532000009,3.2078,2389.3,2389.1,0.7168]
[1725532000208,3.2078,2389.3,2389.2,0.41857]
[1725532002209,10.57776593,2389.7,2389.5,0.41851]
[1725532002413,10.99624593,2389.7,2389.5,0.4185]
[1725532002618,4.1848,2389.6,2389.5,0.4185]
[1725532002810,15.18104593,2389.7,2389.5,0.4185]
[1725532003010,14.76256593,2389.7,2389.5,0.4185]
[1725532003411,10.65156593,2389.7,2389.5,0.4185]
[1725532003716,6.46676593,2389.7,2389.6,0.4185]
[1725532003914,6.46676593,2389.7,2389.5,0.4185]
[1725532004318,6.46676593,2389.7,2389.6,0.4185]
[1725532004617,6.88524593,2389.7,2389.5,0.4185]
[1725532005008,11.07004593,2389.7,2389.5,0.4185]
[1725532005514,11.07004593,2389.7,2389.6,0.4185]
[1725532005706,6.88524593,2389.7,2389.6,0.4185]
[1725532005907,6.46676593,2389.7,2389.6,0.4185]
[1725532006415,3.21406593,2389.7,2389.6,0.4185]
[1725532006916,6.10406593,2389.7,2389.6,0.4185]
[1725532007219,6.32441701,2389.7,2389.6,0.4185]
[1725532007603,6.74290701,2389.7,2389.5,0.4185]
[1725532007810,6.52255593,2389.7,2389.5,0.4185]
[1725532008009,6.52255593,2389.7,2389.6,0.4185]
[1725532008220,6.74289899,2389.7,2389.6,0.4185]
[1725532009318,7.16316807,2389.7,2389.6,0.4185]
[1725532009625,6.74467807,2389.7,2389.6,0.4185]
[1725532010312,3.43440899,2389.7,2389.6,0.4185]
[1725532010506,3.85466404,2389.7,2389.6,0.4185]
[1725532013018,0.4185,2389.6,2389.4,0.41852]
[1725532013223,0.22034306,2389.5,2389.3,0.3764]
[1725532013516,0.22034306,2389.4,2389.3,0.79495]
[1725532013713,3.2078,2389.4,2389.3,0.79495]
[1725532013909,3.42822,2389.4,2389.1,0.3608]
[1725532014110,0.22042,2389.3,2389.1,0.3608]
[1725532014313,0.22042,2389.2,2389.1,0.77938]
[1725532014513,0.22042,2389.2,2389.1,0.3608]
[1725532014712,0.22042836,2389.2,2389.1,0.3608]
[1725532015326,0.22042836,2389.2,2389.0,5.93e-06]
[1725532015524,3.42822836,2389.1,2389.0,5.93e-06]
[1725532016214,3.2078,2389.1,2389.0,5.93e-06]
[1725532016413,3.4281582,2389.1,2389.0,5.93e-06]
[1725532017118,6.3181582,2389.1,2389.0,5.93e-06]
[1725532018322,6.7367382,2389.1,2389.0,5.93e-06]
[1725532018618,7.53487394,2389.1,2389.0,5.93e-06]
[1725532019421,7.53486893,2389.1,2389.0,5.93e-06]
[1725532021028,4.32706893,2389.1,2389.0,5.93e-06]
[1725532021228,7.53486893,2389.1,2389.0,5.93e-06]
[1725532022016,11.72046893,2389.1,2389.0,5.93e-06]
[1725532022318,11.69428893,2389.1,2389.0,5.93e-06]
[1725532022516,11.72046893,2389.1,2389.0,5.93e-06]
[1725532022715,11.30188893,2389.1,2389.0,5.93e-06]
[1725532022921,0.64058893,2389.1,2389.0,0.41860593]
[1725532023224,0.22036542,2389.1,2389.0,4.60420593]
[1725532023411,0.22036542,2389.1,2389.0,0.41860593]
[1725532024023,3.42816542,2389.1,2389.0,0.41860593]
[1725532024223,0.22036542,2389.1,2389.0,4.60420593]
[1725532024612,3.2078,2389.4,2389.1,0.41857]
[1725532024917,3.2078,2389.4,2389.1,0.79177]
[1725532025120,3.2078,2389.4,2389.2,0.41857]
[1725532025121,0.64052815,2389.3,2389.2,0.41857]
[1725532025423,0.2203375,2389.3,2389.2,0.41857]
[1725532025620,0.2203375,2389.3,2389.2,4.60417]
[1725532027015,0.2203375,2389.3,2389.2,10.60417]
[1725532027429,3.2078,2389.4,2389.3,0.41855]
[1725532027625,3.42813197,2389.4,2389.3,4.60415]
[1725532028121,0.22033197,2389.4,2389.3,4.60415]
[1725532029024,0.22033197,2389.4,2389.3,4.1856]
[1725532029215,3.42813197,2389.4,2389.1,1.4557259]
[1725532029419,0.22033197,2389.3,2389.1,0.79178]
[1725532029616,0.22033197,2389.2,2389.1,0.79178]
[1725532029827,0.22033197,2389.3,2389.1,41.59178]
[1725532030027,3.2078,2389.4,2389.1,41.59178]
[1725532030228,0.220355,2389.3,2389.2,4.60417]
[1725532031723,6.10406593,2389.7,2389.2,10.1856]
[1725532032030,0.64057882,2389.6,2389.3,0.3661]
[1725532032224,0.2203467,2389.5,2389.3,0.3661]
[1725532032428,0.2203467,2389.4,2389.3,0.3661]
[1725532032625,0.2203467,2389.4,2389.3,0.78465]
[1725532032825,0.2203467,2389.4,2389.3,4.97025]
[1725532033525,6.7366767,2389.4,2389.3,0.3661]
[1725532033931,6.3181467,2389.4,2389.3,0.3661]
[1725532034124,6.0978,2389.4,2389.3,0.3661]
[1725532034323,6.31809692,2389.4,2389.3,0.3661]
[1725532036528,6.73662692,2389.4,2389.3,0.3661]
[1725532037736,6.31809692,2389.4,2389.3,0.3661]
[1725532038337,6.31809692,2389.4,2389.3,0.78465]
[1725532038729,6.31809692,2389.4,2389.3,0.3661]
[1725532039333,6.73662692,2389.4,2389.3,0.3661]
[1725532039537,6.31809692,2389.4,2389.3,0.3661]
[1725532040539,6.31812509,2389.4,2389.3,0.3661]
[1725532042036,0.22032509,2389.4,2389.3,0.78465]
[1725532042246,0.22032509,2389.4,2389.3,4.97025]
[1725532043433,6.10406593,2389.7,2389.4,0.41851]
[1725532043742,0.64031113,2389.6,2389.4,0.41853]
[1725532044442,6.52254593,2389.7,2389.4,0.41853]
[1725532044632,6.52254593,2389.7,2389.3,0.78464]
[1725532044941,6.0978,2389.4,2389.3,0.3661]
[1725532046141,8.41179288,2389.4,2389.3,0.3661]
[1725532046338,8.41179288,2389.4,2389.1,0.79177]
[1725532046339,8.83183149,2389.4,2389.1,0.21568598]
[1725532046646,8.83183149,2389.4,2389.2,0.41856]
[1725532047436,7.92982449,2389.4,2389.0,41.88253183]
[1725532047639,0.94742629,2389.3,2389.2,0.41857]
[1725532047839,0.94742629,2389.3,2389.0,1.0825259]
[1725532048044,1.83202449,2389.2,2389.1,0.41857]
[1725532048245,1.83202449,2389.2,2388.8,1.62378886]
[1725532048246,2.73383557,2389.2,2388.8,1.62378886]
[1725532048440,0.63824373,2389.1,2388.8,6.85596886]
[1725532048635,6.4769,2389.4,2388.9,2.04240886]
[1725532048636,2.47027538,2389.0,2388.9,2.04240886]
[1725532048840,3.41770167,2389.0,2388.9,42.84240886]
[1725532049042,3.41770167,2389.0,2388.9,53.02800886]
[1725532049344,3.41770167,2389.0,2388.9,51.40422]
[1725532049546,3.81028062,2389.0,2388.9,10.9393]
[1725532049746,3.81028062,2389.0,2388.9,1.17232]
[1725532050143,3.17203689,2389.0,2388.9,1.17232]
[1725532050448,2.99877696,2389.0,2388.9,41.97232]
[1725532050646,2.99877696,2389.0,2388.9,6.0]
[1725532050946,2.99877696,2389.0,2388.9,6.41862]
[1725532051345,2.99877696,2389.0,2388.9,0.41862]
[1725532051550,2.99877696,2389.0,2388.9,6.41862]
[1725532051856,2.99877696,2389.0,2388.9,47.21862]
[1725532052948,2.99877696,2389.0,2388.9,41.21862]
[1725532053352,2.77945794,2389.0,2388.9,41.21862]
[1725532053847,0.41864,2388.8,2388.7,0.00626593]
[1725532054039,9.61405887,2388.8,2388.7,0.00626593]
[1725532054241,0.41873,2388.3,2388.0,2.00678886]
[1725532054447,6.45858105,2388.2,2388.0,0.383]
[1725532054845,2.87888105,2388.1,2388.0,0.383]
[1725532058455,2.87888105,2388.1,2388.0,0.80178]
[1725532061452,2.87888105,2388.1,2388.0,0.383]
[1725532061657,2.87888105,2388.1,2387.9,40.8]
[1725532061658,5.76888105,2388.1,2387.8,0.00627917]
[1725532061858,8.97668105,2387.9,2387.8,0.00627917]
[1725532062559,9.39547105,2387.9,2387.8,0.00627917]
[1725532062753,8.97668105,2387.9,2387.8,0.00627917]
[1725532068457,2.87888105,2387.9,2387.8,0.42508917]
[1725532068661,0.7405,2388.2,2388.1,0.41876]
[1725532069074,3.61938105,2388.2,2388.1,0.41876]
[1725532074170,2.87888105,2388.2,2388.1,0.41876]
[1725532077969,6.10407917,2388.3,2387.9,0.759]
[1725532077970,6.10407917,2388.3,2388.2,0.41874]
[1725532078369,8.98296022,2388.3,2388.2,0.41874]
[1725532080674,0.41876,2388.2,2387.9,1.17778]
[1725532080880,2.89,2388.0,2387.9,1.17778]
[1725532081074,9.39547105,2388.0,2387.8,0.42508917]
[1725532081283,3.24408105,2387.9,2387.8,0.42508917]
[1725532081974,3.66287105,2387.9,2387.8,0.00627917]
[1725532083484,3.24408105,2387.9,2387.8,0.00627917]
[1725532084081,3.24408105,2387.9,2387.8,0.42508917]
[1725532085471,3.24408105,2387.9,2387.8,0.00627917]
[1725532085678,3.24408105,2387.9,2387.8,0.42508917]
[1725532087179,3.24408105,2387.9,2387.8,0.78148917]
[1725532088680,0.00627917,2388.3,2387.8,7.40971917]
[1725532088881,0.00627917,2388.3,2388.2,0.41874]
[1725532089279,2.88516022,2388.3,2388.2,0.41874]
[1725532091577,2.88516022,2388.3,2388.2,0.79004]
[1725532094484,2.88516022,2388.3,2388.2,0.41874]
[1725532097388,2.88516022,2388.3,2388.2,1.4656]
[1725532101585,2.88516022,2388.3,2388.2,2.51246]
[1725532103287,2.88516022,2388.3,2388.2,1.4656]
[1725532103493,4.09516022,2388.3,2388.2,1.4656]
[1725532105198,1.21,2388.6,2388.5,1.46542]
[1725532105492,4.08888105,2388.6,2388.5,1.46542]
[1725532105890,4.08888105,2388.6,2388.5,1.84002]
[1725532106593,0.73207917,2388.8,2388.7,0.41865]
[1725532106892,2.88516022,2388.8,2388.7,1.46529]
[1725532107293,2.88516022,2388.8,2388.7,41.21865]
[1725532107693,2.88516022,2388.8,2388.7,0.41865]
[1725532107894,2.88516022,2388.8,2388.3,2.00118886]
[1725532107895,8.99296022,2388.8,2388.3,2.00118886]
[1725532108195,2.87888105,2388.5,2388.4,41.21871]
[1725532108396,2.87888105,2388.5,2388.4,0.41871]
[1725532109509,0.3631,2388.7,2388.6,0.41867]
[1725532109696,2.87888105,2388.7,2388.6,0.41867]
[1725532110201,5.77888105,2388.7,2388.6,0.41867]
[1725532115902,2.87888105,2388.7,2388.6,0.41867]
[1725532116906,2.87888105,2388.7,2388.6,1.46536]
[1725532126112,3.21407917,2388.8,2388.7,0.41865]
[1725532126512,6.09296022,2388.8,2388.7,0.41865]
[1725532128011,7.30296022,2388.8,2388.7,0.41865]
[1725532132909,7.52180023,2388.8,2388.7,0.41865]
[1725532133112,7.94044023,2388.8,2388.6,0.41866]
[1725532133411,2.87888105,2388.4,2387.8,0.00627917]
[1725532133612,1.85569239,2388.3,2388.0,0.41876]
[1725532133809,4.4178,2388.1,2388.0,0.41876]
[1725532134009,7.29668105,2388.1,2388.0,0.41876]
[1725532134314,7.51550759,2388.1,2388.0,0.41876]
[1725532134520,7.29668105,2388.1,2387.9,0.41879]
[1725532134822,7.29668105,2388.1,2387.8,0.42507917]
[1725532134823,2.87888105,2387.9,2387.8,0.42507917]
[1725532135115,4.08888105,2387.9,2387.8,0.42507917]
[1725532143537,2.87888105,2387.9,2387.8,0.42507917]
[1725532144240,1.2181,2388.3,2388.2,0.41874]
[1725532144433,2.0227,2388.3,2388.2,0.41874]
[1725532144627,4.90158105,2388.3,2388.2,0.41874]
[1725532144933,4.90158105,2388.3,2388.2,41.21874]
[1725532145837,1.21,2388.5,2388.4,0.41871]
[1725532146135,3.6176,2388.7,2388.2,41.84686]
[1725532146136,1.6136,2388.6,2388.5,0.41869]
[1725532146340,4.08888105,2388.6,2388.5,0.41869]
[1725532151338,4.08888105,2388.6,2388.3,0.3862]
[1725532151339,4.08888105,2388.6,2388.4,0.4187]
[1725532151642,1.21,2388.6,2388.4,0.4187]
[1725532151843,1.21,2388.6,2388.4,0.41871]
[1725532151844,2.87888105,2388.5,2388.4,0.41871]
[1725532156741,2.87888105,2388.5,2388.4,1.46548]
[1725532157133,3.2078,2388.7,2388.6,1.46536]
[1725532157334,2.87888105,2388.7,2388.6,2.71722621]
[1725532157539,2.87888105,2388.7,2388.6,3.92722621]
[1725532157841,2.87888105,2388.7,2388.6,43.31205]
[1725532158241,2.87888105,2388.7,2388.6,42.26536]
[1725532159542,0.00627917,2388.8,2388.7,0.41865]